fUSD/lending_fUSD_20260321
["ID","MTS","AMOUNT","RATE_DAILY","PERIOD"]
[408672922,1774101983607,-500.0,0.000445,45]
[408672923,1774101983654,-500.0,0.000445,45]
[408672924,1774101983696,-500.0,0.000445,45]
[408672925,1774101983737,-500.0,0.000445,45]
[408672926,1774101983780,-500.0,0.000445,45]
[408672927,1774101983823,-300.0,0.00044515,118]
[408672928,1774101983865,-166.62325,0.00044521,120]
[408672929,1774101983909,-166.62325,0.00044521,120]
[408672930,1774101983953,-166.62325,0.00044521,120]
[408672931,1774101984112,-166.62325,0.00044521,120]
[408672932,1774101984156,-166.62325,0.00044521,120]
[408672933,1774101984200,-166.62325,0.00044521,120]
[408672934,1774101984243,-166.62325,0.00044521,120]
[408672935,1774101984285,-166.62325,0.00044521,120]
[408672936,1774101984331,-166.62325,0.00044521,120]
[408672937,1774101984377,-166.62325,0.00044521,120]
[408672938,1774101984423,-166.62325,0.00044521,120]
[408672939,1774101984467,-166.62325,0.00044521,120]
[408672940,1774101984510,-166.62325,0.00044521,120]
[408672941,1774101984555,-166.62325,0.00044521,120]
[408672942,1774101984599,-166.62325,0.00044521,120]
[408672943,1774101984649,-166.62325,0.00044521,120]
[408672944,1774101984696,-166.62325,0.00044521,120]
[408672945,1774101984739,-166.62325,0.00044521,120]
[408672946,1774101984783,-166.62325,0.00044521,120]
[408672947,1774101984826,-166.62325,0.00044521,120]
[408672948,1774101984869,-300.0,0.00044591,120]
[408672949,1774101984910,-1361.0,0.000446,30]
[408672950,1774101984952,-159.0,0.000446,120]
[408672951,1774101984995,-300.0,0.00044603,120]
[408672952,1774101985040,-300.0,0.00044603,120]
[408672953,1774101985083,-300.0,0.00044603,120]
[408672954,1774101985123,-300.0,0.00044603,120]
[408672955,1774101985163,-300.0,0.00044603,120]
[408672956,1774101985203,-300.0,0.00044603,120]
[408672957,1774101985244,-158.94,0.00044603,120]
[408672958,1774101985283,-9070.2302,0.00044804,30]
[408672959,1774101985335,-190.70084275,0.0004489,120]
[408672960,1774101985398,-409.47061154,0.000449,30]
[408672961,1774101985458,-1795.5148,0.000449,120]
[408672962,1774101985523,-205.00760897,0.000449,120]
[408672963,1774101985584,-722.64226172,0.00045,120]
[408672964,1774101985639,-822.74600601,0.00045,120]
[408672965,1774101985696,-156.5438337,0.00045,120]
[408672966,1774101985748,-2699.68272907,0.00045,120]
[408672967,1774101985813,-245.00092922,0.00045,120]
[408672968,1774101985894,-218.7983818,0.00045,30]
[408672969,1774101985961,-207.62408079,0.00045,120]
[408672970,1774101986020,-389.73351762,0.00045,30]
[408672971,1774101986079,-444.06877031,0.00045,120]
[408672972,1774101986141,-302.54291029,0.00045,30]
[408672973,1774101986199,-302.56514482,0.00045,30]
[408672974,1774101986254,-782.29486377,0.00045,30]
[408672975,1774101986321,-2534.55874893,0.00045,30]
[408672976,1774101986388,-237.76445188,0.00045,120]
[408672977,1774101986449,-554.20577819,0.00045,120]
[408672978,1774101986509,-818.35389837,0.00045,120]
[408672979,1774101986570,-666.24061704,0.00045,30]
[408672980,1774101986629,-10445.0,0.00045,60]
[408672981,1774101986689,-10000.0,0.00045,120]
[408672982,1774101986748,-2700.0,0.00045,120]
[408672983,1774101986813,-12453.78,0.00045,120]
[408672984,1774101986880,-2775.76296184,0.00045,120]
[408672985,1774101986940,-5104.999999,0.00045,120]
[408672986,1774101987156,-2443.46,0.00045,120]
[408672987,1774101987204,-150.0,0.00045,85]
[408672988,1774101987246,-307.02654208,0.00045,120]
[408672989,1774101987288,-162.76176978,0.00045,30]
[408672990,1774101987330,-179.9081623,0.00045,120]
[408672991,1774101987375,-193.592427,0.00045,120]
[408672992,1774101987422,-193.592427,0.00045,120]
[408672993,1774101987467,-193.592427,0.00045,120]
[408672994,1774101987512,-193.592427,0.00045,120]
[408672995,1774101987556,-263.44112415,0.00045,120]
[408672996,1774101987601,-3000.0,0.00045,30]
[408672997,1774101987648,-8000.0,0.00045,30]
[408672998,1774101987695,-8037.05959592,0.00045,45]
[408672999,1774101987741,-706.81,0.00045,120]
[408673000,1774101987787,-431.44,0.00045,120]
[408673001,1774101987830,-319.47,0.00045,120]
[408673002,1774101987878,-425.59,0.00045,120]
[408673003,1774101987927,-36372.0,0.00045,60]
[408673004,1774101987977,-169.94170585,0.000451,120]
[408673005,1774101988022,-50000.0,0.00045205,75]
[408673006,1774101988066,-62111.21143548,0.00045206,30]
[408673007,1774101988109,-212.77593108,0.000454,30]
[408673008,1774101988155,-13915.41,0.00045427,120]
[408673009,1774101988202,-470.68,0.00045427,120]
[408673010,1774101988246,-526.53044307,0.00045474,120]
[408673011,1774101988294,-151.0,0.00045479,120]
[408673012,1774101988338,-151.0,0.00045479,120]
[408673013,1774101988383,-267.269881,0.00045479,120]
[408673014,1774101988425,-253.42086122,0.000457,120]
[408673015,1774101988468,-1000.0,0.000458,30]
[408673016,1774101988520,-1018.50359535,0.00045821,107]
[408673017,1774101988564,-182.53587949,0.0004588,30]
[408673018,1774101988607,-3726.0,0.000459,120]
[408673019,1774101988657,-490.15597155,0.00045999,120]
[408673020,1774101988701,-175.19738808,0.00046,120]
[408673021,1774101988761,-871.73277725,0.00046,30]
[408673022,1774101988814,-290.08444494,0.00046,120]
[408673023,1774101988864,-225.50457221,0.00046,120]
[408673024,1774101988914,-636.13004928,0.00046,90]
[408673025,1774101988964,-629.3437265,0.00046,60]
[408673026,1774101989008,-500.0,0.00046,30]
[408673027,1774101989054,-2000.0,0.00046,30]
[408673028,1774101989101,-5463.0,0.00046,120]
[408673029,1774101989163,-281.0,0.00046,120]
[408673030,1774101989217,-976.18764646,0.00046,120]
[408673031,1774101989266,-332.96223539,0.00046,120]
[408673032,1774101989311,-1580.929,0.00046124,30]
[408673033,1774101989355,-417.70771352,0.00046177,120]
[408673034,1774101989397,-395.79896165,0.00046244,30]
[408673035,1774101989440,-313.6,0.000463,60]
[408673036,1774101989482,-36372.0,0.0004635,60]
[408673037,1774101989521,-158.59217022,0.00046388,30]
[408673038,1774101989561,-1182.33276875,0.00046492,120]
[408673039,1774101989602,-1196.33804462,0.0004655,120]
[408673040,1774101989647,-463.1025624,0.00046552,120]
[408673041,1774101989693,-510.46975568,0.00046575,120]
[408673042,1774101989741,-255979.4745211,0.00046575,30]
[408673043,1774101989785,-50000.0,0.00046575,80]
[408673044,1774101990350,3615.065818,0.00039726,120]
[408673045,1774101990456,219.60664,0.0004,120]
[408673046,1774101990529,3615.065818,0.00039726,120]
[408673047,1774101990663,374.0,0.00031407,30]
[408673048,1774101990717,3615.065818,0.0004,120]
[408673049,1774101990788,3615.065818,0.00039726,120]
[408673050,1774101990891,3615.065818,0.00039726,120]
[408673051,1774101990972,3615.065818,0.00039726,120]
[408673052,1774101991056,3615.065818,0.00039726,120]
[408673053,1774101991133,3615.065827,0.0004,120]
[408673054,1774101991725,1318.9030273,0.00042419,74]
[408673055,1774101992814,-188.11,0.00012044,2]
[408673058,1774102232031,-216.36106284,0.00013866,2]
[408673059,1774102232040,-943.58250787,0.00013884,2]
[408673060,1774102232052,-256.41749213,0.00013884,2]
[408673061,1774102232062,-300.0,0.00013884,2]
[408673062,1774102232072,-417.11598313,0.00013885,2]
[408673063,1774102232088,-309.13301687,0.00013885,2]
[408673064,1774102232098,-246.82683056,0.00013885,2]
[408673065,1774102232109,-456.03685,0.00013885,2]
[408673066,1774102232121,-497.13631944,0.00013885,2]
[408673067,1774102232130,-300.0,0.00013885,2]
[408673068,1774102232140,-166.52,0.00014764,2]
[408673069,1774102232150,-1662.00308048,0.00014813,2]
[408673070,1774102232162,-337.99691952,0.00014813,2]
[408673071,1774102232172,-165.15,0.00014825,2]
[408673072,1774102232182,-166.81,0.00015184,2]
[408673073,1774102232192,-250.0,0.00015274,2]
[408673074,1774102232202,-89.82807748,0.00015487,2]
[408673075,1774102232215,-60.17192252,0.00015487,2]
[408673076,1774102232225,-1873.69724359,0.000155,2]
[408673077,1774102232238,-626.30275641,0.000155,2]
[408673078,1774102232247,-285.83868858,0.00015505,2]
[408673079,1774102232257,-972.0,0.00015529,2]
[408673080,1774102232266,-285.83868858,0.00015561,2]
[408673081,1774102232276,-154.98371835,0.0001559,2]
[408673082,1774102232287,-972.0,0.0001559,2]
[408673083,1774102232296,-500.0,0.00015599,2]
[408673084,1774102232306,-446.13614808,0.00015599,2]
[408673085,1774102232319,-53.86385192,0.00015599,2]
[408673086,1774102232329,-385.97029528,0.00015599,2]
[408673087,1774102232350,-37.1156485,0.00015599,2]
[408673088,1774102232360,-534.56490545,0.000156,2]
[408673089,1774102232371,-3209.51724405,0.000156,2]
[408673090,1774102232383,-987.75961641,0.000156,2]
[408673091,1774102232394,-2642.63241699,0.000156,2]
[408673094,1774102232410,-2413.61553984,0.000156,2]
[408673096,1774102232422,-1284.18884217,0.000156,2]
[408673098,1774102232433,-2772.49444839,0.000156,2]
[408673100,1774102232444,-871.14161176,0.000156,2]
[408673101,1774102232455,-341.348914,0.000156,2]
[408673102,1774102232470,-5132.68743509,0.000156,2]
[408673103,1774102238128,-166.66,0.00014359,2]
[408673104,1774102238138,-166.66,0.00014662,2]
[408673105,1774102238148,-166.66,0.00014964,2]
[408673106,1774102238158,-166.66,0.00015266,2]
[408673107,1774102238167,-166.66,0.00015569,2]
[408673108,1774102238177,-456.75953356,0.000156,2]
[408673109,1774102238189,-506.38888323,0.000156,2]
[408673110,1774102238201,-6250.77960331,0.000156,2]
[408673111,1774102238243,-90230.14453399,0.000156,2]
[408673112,1774102238255,-1172.96774003,0.000156,2]
[408673113,1774102238267,-873.39,0.000156,2]
[408673114,1774102238278,-16307.56333489,0.000156,2]
[408673117,1774102240567,-395778.49399684,0.000156,2]
[408673118,1774102240576,-6006.0,0.00015604,2]
[408673119,1774102240586,-2466.0,0.00015604,2]
[408673120,1774102240596,-972.0,0.00015605,2]
[408673121,1774102240606,-285.83868858,0.00015618,2]
[408673122,1774102240616,-285.83868858,0.00015674,2]
[408673123,1774102240626,-285.83868858,0.00015731,2]
[408673124,1774102240636,-979.16666667,0.00015734,2]
[408673125,1774102240646,-972.0,0.00015758,2]
[408673126,1774102240656,-285.83868858,0.00015787,2]
[408673127,1774102240665,-160.07694654,0.00015844,2]
[408673128,1774102240675,-285.83868858,0.00015844,2]
[408673129,1774102240686,-166.66,0.00015871,2]
[408673130,1774102240698,-3328.0059121,0.000159,3]
[408673131,1774102240708,-5000.0,0.000159,2]
[408673132,1774102240722,-160.07694654,0.000159,2]
[408673133,1774102240736,-419.16053716,0.000159,2]
[408673134,1774102240746,-1691.0,0.000159,2]
[408673135,1774102240756,-285.83868858,0.000159,2]
[408673136,1774102240765,-224.0,0.00015929,2]
[408673137,1774102240775,-225.696003,0.00015945,2]
[408673138,1774102240785,-166.2983806,0.00015953,2]
[408673139,1774102240794,-167161.4829482,0.00015953,2]
[408673140,1774102240804,-3540.83989,0.00015953,2]
[408673141,1774102240814,-3091.2068453,0.00015953,2]
[408673142,1774102240824,-4085.0,0.00015973,2]
[408673143,1774102240833,-500.56236053,0.00015973,2]
[408673144,1774102240843,-500.84837608,0.00015973,2]
[408673145,1774102240852,-500.0,0.00015973,2]
[408673146,1774102240862,-155.51,0.00015999,2]
[408673147,1774102240871,-500.0,0.00015999,2]
[408673148,1774102240881,-641.4547314,0.00015999,2]
[408673149,1774102240891,-216.68326983,0.00015999,2]
[408673150,1774102240900,-617.42689228,0.00015999,2]
[408673151,1774102240910,-1947.0,0.00016,5]
[408673152,1774102240923,-1358.0,0.00016,5]
[408673153,1774102240933,-1155093.82703287,0.00016,2]
[408673154,1774102240949,-111399.57877675,0.00016,2]
[408673164,1774102243190,-3758.0,0.00015604,2]
[408673165,1774102243199,-45299.71676995,0.00016,2]
[408673166,1774102243211,-49329.2659815,0.00016,2]
[408673167,1774102243223,-4976.42433161,0.00016,2]
[408673170,1774102243429,-8038.79803687,0.00016,2]
[408673220,1774102246035,-2624.72158937,0.00016,2]
[408673221,1774102246093,-276847.38472271,0.00016,2]
[408673222,1774102246104,-1498.2,0.00016,2]
[408673278,1774102327706,10000.01,7.945e-05,2]
[408673279,1774102327733,10000.01,7.945e-05,2]
[408673280,1774102327756,2533.592797,7.945e-05,2]
[408673289,1774102815657,-507.0,0.00013111,2]
[408673290,1774102815684,-383.46001581,0.00013111,2]
[408673291,1774102815712,-258.0,0.00013111,2]
[408673292,1774102815740,-234.87,0.00013211,2]
[408673293,1774102815768,-234.87,0.00013211,2]
[408673294,1774102815797,-180.29240252,0.00013686,2]
[408673295,1774102828190,-2237.0,0.00016,5]
[408673296,1774102828215,-5000.00403158,0.000162,5]
[408673297,1774102828237,-421.57265,0.00016242,7]
[408673298,1774102839616,10000.01,0.00013633,2]
[408673299,1774102839637,4709.911914,0.00013633,2]
[408673300,1774102853982,-25000.0,0.00015891,3]
[408673301,1774102854003,-25000.0,0.000159,3]
[408673302,1774102854026,-160.0,0.00016,3]
[408673303,1774102864347,-250.922524,0.0001666,7]
[408673304,1774102864373,-173.433698,0.0001666,7]
[408673305,1774102878111,-1065.52957646,0.000175,3]
[408673306,1774102896148,-300.0,0.00013701,2]
[408673307,1774102896170,-300.0,0.00013701,2]
[408673308,1774102896190,-1200.0,0.00013702,2]
[408673309,1774102896211,-300.0,0.00013702,2]
[408673310,1774102896233,-1200.0,0.00013702,2]
[408673311,1774102896255,-300.0,0.00013702,2]
[408673312,1774102896275,-500.0,0.00013773,2]
[408673313,1774102896299,-3259.06872116,0.00013776,2]
[408673314,1774102896320,-174.47964956,0.00013785,2]
[408673315,1774102896342,-156.36296868,0.00013785,2]
[408673316,1774102896367,-150.0,0.00013785,2]
[408673317,1774102896392,-22691.62618056,0.00013786,2]
[408673324,1774103295400,-1865.1835971,0.00013,2]
[408673325,1774103297723,-1222.95309712,0.00013,2]
[408673326,1774103297747,-2554.10380576,0.00013,2]
[408673327,1774103297824,-1829.38811527,0.0001305,2]
[408673328,1774103297848,-1341.23376946,0.0001305,2]
[408673329,1774103297922,-300.0,0.00013684,2]
[408673330,1774103297949,-530.0,0.00013685,2]
[408673331,1774103297986,-1200.0,0.00013685,2]
[408673332,1774103298016,-300.0,0.00013685,2]
[408673333,1774103298046,-150.0,0.00013685,2]
[408673334,1774103298152,-250.0,0.00013686,2]
[408673335,1774103298212,-40.01,0.00013686,2]
[408673336,1774103298227,-4500.01,0.00013686,2]
[408673337,1774103298252,-5000.01,0.00013686,2]
[408673338,1774103298297,-5000.01,0.00013686,2]
[408673339,1774103298399,-1381.6222,0.00013686,2]
[408673340,1774103298423,-2236.7656,0.00013686,2]
[408673341,1774103300700,-628.1322,0.00013686,2]
[408673342,1774103300731,-1243.7456,0.00013717,2]
[408673343,1774103300767,-1256.2544,0.00013717,2]
[408673344,1774103300804,-5000.01,0.00013766,2]
[408673345,1774103300928,-2319.37090971,0.00013766,2]
[408673346,1774103300952,-361.26818058,0.00013766,2]
[408673347,1774103301031,-1558.87846201,0.00013766,2]
[408673348,1774103301060,-499.84886172,0.00013773,2]
[408673349,1774103301088,-200.0,0.00013777,2]
[408673351,1774103320577,-309.43671847,0.000125,2]
[408673352,1774103348142,-1000.0,0.000135,2]
[408673353,1774103348164,-1928.00084781,0.0001372,2]
[408673354,1774103348185,-2500.0,0.00013722,2]
[408673355,1774103348206,-2500.0,0.00013722,2]
[408673356,1774103348226,-300.0,0.00013785,2]
[408673357,1774103348249,-57132.21421219,0.00013786,2]
[408673358,1774103352163,-418.29441242,0.00013786,2]
[408673359,1774103353137,-7110.579238,0.00013786,2]
[408673360,1774103420836,-5000.0,0.00013576,2]
[408673361,1774103421998,-5000.0,0.00013576,2]
[408673362,1774103423422,-425.0103144,0.00013576,2]
[408673363,1774103423443,-300.0,0.00013585,2]
[408673364,1774103423464,-1200.0,0.00013585,2]
[408673365,1774103423485,-300.0,0.00013585,2]
[408673366,1774103423505,-150.0,0.00013585,2]
[408673367,1774103423525,-300.0,0.00013585,2]
[408673368,1774103423545,-262.0,0.00013585,2]
[408673369,1774103423566,-2062.9896856,0.00013586,2]
[408673370,1774103424527,-5000.0,0.00013586,2]
[408673371,1774103425874,-5000.0,0.00013586,2]
[408673372,1774103427372,-5000.0,0.00013586,2]
[408673373,1774103428519,-5000.0,0.00013586,2]
[408673374,1774103429264,-5000.0,0.00013586,2]
[408673375,1774103430633,-5000.0,0.00013586,2]
[408673381,1774103432240,-888.63598024,0.00013586,2]
[408673382,1774103432253,-419.3,0.00013586,2]
[408673383,1774103432267,-1380.09438079,0.00013586,2]
[408673384,1774103432282,-1351.14592439,0.00013586,2]
[408673385,1774103432295,-1670.86245039,0.00013586,2]
[408673386,1774103432310,-1420.58821424,0.00013586,2]
[408673387,1774103432325,-1070.15000001,0.00013586,2]
[408673388,1774103432577,-13.99999983,0.00013586,2]
[408673389,1774103432591,-119212.4248604,0.00013586,2]
[408673390,1774103432626,-4114.0,0.00013586,2]
[408673391,1774103432641,-732.5,0.00013586,2]
[408673392,1774103432655,-1441.74916,0.00013586,2]
[408673393,1774103432669,-1555.25933657,0.00013586,2]
[408673394,1774103432705,-5000.0,0.00013586,2]
[408673395,1774103432726,-380.0,0.00013586,2]
[408673396,1774103432738,-3505.78758415,0.00013586,2]
[408673399,1774103433168,-500.0,0.00013585,2]
[408673400,1774103433194,-500.0,0.00013585,2]
[408673401,1774103433222,-500.0,0.00013585,2]
[408673402,1774103433247,-500.0,0.00013585,2]
[408673403,1774103433275,-500.0,0.00013585,2]
[408673404,1774103433307,-500.0,0.00013585,2]
[408673405,1774103433332,-500.0,0.00013585,2]
[408673406,1774103433359,-500.0,0.00013585,2]
[408673407,1774103433385,-500.0,0.00013585,2]
[408673408,1774103433414,-500.0,0.00013585,2]
[408673409,1774103433746,-500.0,0.00013585,2]
[408673410,1774103433770,-513.90812666,0.00013585,2]
[408673411,1774103433798,-500.0,0.00013585,2]
[408673412,1774103433827,-500.0,0.00013585,2]
[408673413,1774103433854,-500.0,0.00013585,2]
[408673414,1774103433885,-500.0,0.00013585,2]
[408673415,1774103433914,-500.0,0.00013585,2]
[408673416,1774103433941,-500.0,0.00013585,2]
[408673417,1774103433968,-500.0,0.00013585,2]
[408673418,1774103433996,-486.09187334,0.00013585,2]
[408673419,1774103434494,-13.90812666,0.00013585,2]
[408673420,1774103434522,-500.0,0.00013585,2]
[408673421,1774103434549,-500.0,0.00013585,2]
[408673422,1774103434577,-500.0,0.00013585,2]
[408673423,1774103434604,-500.0,0.00013585,2]
[408673424,1774103434632,-500.0,0.00013585,2]
[408673425,1774103434659,-164.22034488,0.00013585,2]
[408673426,1774103434687,-500.0,0.00013585,2]
[408673427,1774103434714,-500.0,0.00013585,2]
[408673428,1774103434742,-500.0,0.00013585,2]
[408673429,1774103434769,-500.0,0.00013585,2]
[408673430,1774103434796,-321.87152846,0.00013585,2]
[408673431,1774103435214,-178.12847154,0.00013585,2]
[408673432,1774103435240,-500.0,0.00013585,2]
[408673433,1774103435266,-4321.87152846,0.00013586,2]
[408673434,1774103435797,-500.0,0.00013585,2]
[408673435,1774103435826,-4500.0,0.00013586,2]
[408673436,1774103436548,-5000.0,0.00013586,2]
[408673437,1774103438300,-18505.54163152,0.00013586,2]
[408673438,1774103438313,-3549.28876,0.00013586,2]
[408673440,1774103438360,-720.01455073,0.00013586,2]
[408673441,1774103438372,-369.40435458,0.00013586,2]
[408673442,1774103438427,-469.73578931,0.00013586,2]
[408673443,1774103438439,-15341.31009485,0.00013586,2]
[408673444,1774103438451,-11737.65924844,0.00013586,2]
[408673445,1774103438542,-2190.42,0.00013586,2]
[408673446,1774103438555,-1051.74850456,0.00013586,2]
[408673447,1774103438566,-275647.42487013,0.00013586,2]
[408673493,1774103440599,-146961.77979081,0.00013586,2]
[408673494,1774103440609,-7000.23596307,0.00013676,2]
[408673495,1774103440618,-241.11690104,0.00013776,2]
[408673496,1774103440629,-200.0,0.0001382,2]
[408673497,1774103440639,-7837.04,0.00013914,2]
[408673498,1774103440649,-7000.23596306,0.00013923,2]
[408673499,1774103440659,-2766.5,0.00014161,2]
[408673500,1774103440669,-7000.23596306,0.0001417,2]
[408673501,1774103440679,-200.0,0.00014253,2]
[408673502,1774103440689,-300.0,0.000143,2]
[408673503,1774103440697,-300.0,0.000143,2]
[408673504,1774103440707,-5000.0,0.000143,2]
[408673505,1774103440716,-200.0,0.00014325,2]
[408673506,1774103440725,-185.23,0.00014409,2]
[408673507,1774103440735,-7000.23596306,0.00014417,2]
[408673508,1774103440744,-963.0,0.00014532,2]
[408673509,1774103440753,-3240.0,0.00014539,2]
[408673510,1774103440763,-7000.23596306,0.00014664,2]
[408673511,1774103440773,-1558.87846199,0.00014681,2]
[408673512,1774103440782,-255.0,0.00014699,2]
[408673513,1774103440792,-1000.0,0.00014846,2]
[408673514,1774103440804,-2500.0,0.0001485,2]
[408673515,1774103440814,-200.0,0.00014873,2]
[408673516,1774103440824,-420.0,0.00014889,2]
[408673517,1774103440834,-420.0,0.00014889,2]
[408673518,1774103440844,-7000.23596306,0.00014912,2]
[408673519,1774103440853,-500.0,0.00014921,2]
[408673520,1774103440864,-500.0,0.00014921,2]
[408673521,1774103440875,-500.0,0.00014921,2]
[408673522,1774103440887,-189.85256581,0.00014921,2]
[408673523,1774103440896,-500.0,0.00014921,2]
[408673524,1774103440906,-500.0,0.00014921,2]
[408673525,1774103440916,-500.0,0.00014921,2]
[408673526,1774103440925,-500.0,0.00014921,2]
[408673527,1774103440935,-500.0,0.00014921,2]
[408673528,1774103440944,-500.0,0.00014921,2]
[408673529,1774103440953,-500.0,0.00014921,2]
[408673530,1774103440964,-500.0,0.00014921,2]
[408673531,1774103440973,-500.0,0.00014921,2]
[408673532,1774103440982,-500.0,0.00014921,2]
[408673533,1774103440992,-500.0,0.00014921,2]
[408673534,1774103441002,-500.0,0.00014921,2]
[408673535,1774103441011,-500.0,0.00014921,2]
[408673536,1774103441021,-500.0,0.00014921,2]
[408673537,1774103441035,-500.0,0.00014921,2]
[408673538,1774103441044,-500.0,0.00014921,2]
[408673539,1774103441054,-500.0,0.00014921,2]
[408673540,1774103441063,-500.0,0.00014921,2]
[408673541,1774103441075,-500.0,0.00014921,2]
[408673542,1774103441085,-500.0,0.00014921,2]
[408673543,1774103441094,-500.0,0.00014921,2]
[408673544,1774103441104,-500.0,0.00014921,2]
[408673545,1774103441113,-500.0,0.00014921,2]
[408673546,1774103441123,-500.0,0.00014921,2]
[408673547,1774103441133,-500.0,0.00014921,2]
[408673548,1774103441142,-500.0,0.00014921,2]
[408673549,1774103441151,-208.74190005,0.00014921,2]
[408673550,1774103441161,-500.0,0.00014921,2]
[408673551,1774103441170,-500.0,0.00014921,2]
[408673552,1774103441180,-500.0,0.00014921,2]
[408673554,1774103441189,-500.0,0.00014921,2]
[408673555,1774103441198,-500.0,0.00014921,2]
[408673557,1774103441208,-500.0,0.00014921,2]
[408673559,1774103441217,-500.0,0.00014921,2]
[408673561,1774103441226,-500.0,0.00014921,2]
[408673562,1774103441236,-314.39578779,0.00014921,2]
[408673563,1774103441245,-500.0,0.00014921,2]
[408673564,1774103441255,-538.0,0.00014921,2]
[408673565,1774103441265,-150.0,0.00014921,2]
[408673566,1774103441274,-500.0,0.00014921,2]
[408673567,1774103441283,-500.0,0.00014921,2]
[408673568,1774103441291,-500.0,0.00014921,2]
[408673569,1774103441300,-500.0,0.00014921,2]
[408673570,1774103441310,-500.0,0.00014921,2]
[408673571,1774103441319,-405.13912485,0.00014921,2]
[408673572,1774103441329,-150.0,0.00014921,2]
[408673573,1774103441338,-557.72229793,0.00014931,2]
[408673574,1774103441347,-500.0,0.00014931,2]
[408673575,1774103441357,-440.73956504,0.00014931,2]
[408673576,1774103441366,-500.0,0.00014931,2]
[408673577,1774103441376,-348.03702285,0.00014931,2]
[408673578,1774103441385,-1680.0,0.00014943,2]
[408673579,1774103441394,-2500.0,0.00014944,2]
[408673580,1774103441404,-1558.87846199,0.00014985,2]
[408673581,1774103441413,-250.0,0.00015054,2]
[408673582,1774103441423,-300.0,0.000151,2]
[408673583,1774103441432,-170.03,0.00015133,2]
[408673584,1774103441442,-887.19,0.00015194,2]
[408673585,1774103441451,-500.0,0.00015195,2]
[408673586,1774103441461,-150.0,0.00015195,2]
[408673587,1774103441472,-500.0,0.00015195,2]
[408673588,1774103441481,-500.0,0.00015195,2]
[408673589,1774103441491,-172.7281616,0.00015195,2]
[408673590,1774103441501,-464.5671109,0.00015195,2]
[408673591,1774103441511,-150.0,0.00015195,2]
[408673592,1774103441521,-500.0,0.00015195,2]
[408673593,1774103441530,-150.0,0.00015195,2]
[408673594,1774103441539,-500.0,0.00015195,2]
[408673595,1774103441549,-150.0,0.00015195,2]
[408673596,1774103441558,-230.61276914,0.00015195,2]
[408673597,1774103441568,-239.48115894,0.00015195,2]
[408673598,1774103441577,-1558.87846199,0.0001529,2]
[408673599,1774103441587,-7219.83623923,0.00015352,2]
[408673600,1774103441596,-537.74,0.00015355,2]
[408673601,1774103441605,-7219.83623918,0.00015413,2]
[408673602,1774103441615,-200.0,0.00015421,2]
[408673603,1774103441625,-500.0,0.00015452,2]
[408673604,1774103441635,-500.0,0.00015452,2]
[408673605,1774103441645,-500.0,0.00015452,2]
[408673606,1774103441655,-500.0,0.00015452,2]
[408673607,1774103441664,-500.0,0.00015452,2]
[408673608,1774103441675,-500.0,0.00015452,2]
[408673609,1774103441684,-555.09199789,0.00015452,2]
[408673610,1774103441694,-172.02411673,0.00015452,2]
[408673611,1774103441704,-500.0,0.00015452,2]
[408673612,1774103441714,-500.0,0.00015452,2]
[408673613,1774103441723,-500.0,0.00015452,2]
[408673614,1774103441732,-516.42166311,0.00015452,2]
[408673615,1774103441741,-500.0,0.00015452,2]
[408673616,1774103441751,-757.0,0.00015452,2]
[408673617,1774103441760,-500.0,0.00015452,2]